bitfinex-derivatives/quotes_SOLF0:USTF0_20241222
["timestamp","ask_amount","ask_price","bid_price","bid_amount"]
[1734905427857,35.44794955,177.99,177.84,38.67614955]
[1734905428058,35.44794955,178.02,177.87,35.44794955]
[1734905428259,4.16,178.01,177.88,1.7363]
[1734905428558,6.9712,178.0,177.94,2.8119]
[1734905428758,4.16,177.99,177.88,1.7363]
[1734905430256,6.9712,177.99,177.88,1.7363]
[1734905430460,4.16,177.99,177.88,1.7363]
[1734905430656,38.61964177,177.98,177.8,93.07274026]
[1734905430959,38.61964177,177.98,177.8,96.45324026]
[1734905431559,38.61964177,177.98,177.8,3.3805]
[1734905431864,2.8131,177.88,177.83,2.8137]
[1734905432463,2.8131,177.87,177.83,2.8137]
[1734905432859,4.42,177.89,177.84,2.8135]
[1734905433060,7.2329,177.89,177.84,2.8135]
[1734905433763,2.813,177.88,177.84,2.8135]
[1734905434664,2.8132,177.87,177.82,2.8138]
[1734905435355,2.8133,177.86,177.78,3.3805]
[1734905435555,4.42,177.89,177.78,3.3805]
[1734905435761,4.42,177.89,177.77,1.7104]
[1734905435961,4.42,177.89,177.74,0.26228]
[1734905437467,2.8144,177.79,177.74,3.07738]
[1734905438363,4.42,177.82,177.74,0.26228]
[1734905438562,43.03964177,177.82,177.74,0.26228]
[1734905438958,4.42,177.81,177.74,0.26228]
[1734905440158,2.8144,177.79,177.74,0.26228]
[1734905440358,4.42,177.83,177.74,0.26228]
[1734905440763,2.8144,177.79,177.74,0.26228]
[1734905440968,4.42,177.83,177.74,0.26228]
[1734905441664,2.8147,177.78,177.74,0.26228]
[1734905442870,4.42,177.83,177.74,0.26228]
[1734905443072,2.8147,177.77,177.74,0.26228]
[1734905443968,2.8142,177.81,177.74,0.26228]
[1734905444170,4.42,177.83,177.74,0.26228]
[1734905444862,2.8149,177.76,177.74,0.26228]
[1734905445060,4.42,177.83,177.74,0.26228]
[1734905445265,2.8147,177.78,177.74,0.26228]
[1734905445565,4.42,177.83,177.74,0.26228]
[1734905445764,2.8142,177.81,177.74,0.26228]
[1734905445960,4.42,177.81,177.74,0.26228]
[1734905446565,38.61964177,177.9,177.74,0.26228]
[1734905446761,4.42,177.89,177.74,0.26228]
[1734905447271,4.42,177.88,177.74,0.26228]
[1734905448266,4.42,177.88,177.74,35.81566946]
[1734905448569,35.55338946,177.87,177.75,5.0493]
[1734905448759,4.42,177.88,177.75,5.0493]
[1734905448760,35.55338946,177.84,177.75,5.0493]
[1734905448963,2.8146,177.78,177.75,5.0493]
[1734905449559,2.8142,177.8,177.75,5.0493]
[1734905450373,7.234,177.82,177.75,5.0493]
[1734905450575,4.42,177.82,177.75,5.0493]
[1734905451071,2.8146,177.78,177.74,2.8152]
[1734905453379,2.8147,177.77,177.73,2.8153]
[1734905453670,4.42,177.82,177.69,4.866]
[1734905454070,2.8146,177.78,177.69,4.866]
[1734905454377,4.42,177.86,177.69,9.286]
[1734905454574,35.55338946,177.81,177.69,4.866]
[1734905454771,4.42,177.8,177.69,4.866]
[1734905456074,2.8156,177.72,177.69,4.866]
[1734905456378,4.42,177.8,177.69,4.866]
[1734905457075,4.44,177.79,177.69,4.866]
[1734905457279,2.8151,177.75,177.7,2.8158]
[1734905458071,2.8149,177.76,177.7,2.8158]
[1734905458277,4.44,177.78,177.7,2.8158]
[1734905458778,35.55338946,177.81,177.69,4.866]
[1734905458969,4.44,177.8,177.69,4.866]
[1734905459575,4.44,177.83,177.69,4.866]
[1734905459973,35.55338946,177.84,177.69,4.866]
[1734905460178,2.8144,177.79,177.73,2.8153]
[1734905460475,4.32,177.83,177.69,4.866]
[1734905460675,2.8144,177.79,177.75,2.8149]
[1734905460874,4.32,177.83,177.69,4.866]
[1734905461180,35.55338946,177.87,177.71,35.55338946]
[1734905461478,4.32,177.86,177.71,35.55338946]
[1734905461675,35.55338946,177.84,177.7,4.32]
[1734905461880,2.8145,177.79,177.74,2.8151]
[1734905462476,2.8147,177.78,177.74,2.8151]
[1734905462674,35.55338946,177.84,177.7,4.32]
[1734905462876,4.32,177.86,177.71,35.55338946]
[1734905463080,4.32,177.86,177.76,2.8147]
[1734905463280,4.32,177.86,177.7,4.32]
[1734905463480,35.55338946,177.78,177.64,152.88744339]
[1734905463675,4.32,177.77,177.67,3.16479]
[1734905464084,2.8156,177.72,177.67,3.16479]
[1734905464274,4.32,177.77,177.7,2.8158]
[1734905464478,2.8153,177.73,177.67,0.34869]
[1734905464986,4.32,177.77,177.67,3.16489]
[1734905465176,2.8152,177.74,177.67,3.16489]
[1734905465382,4.32,177.77,177.67,3.16489]
[1734905465779,2.8157,177.71,177.67,3.16489]
[1734905465985,4.32,177.77,177.67,0.34869]
[1734905467584,4.32,177.77,177.68,2.8161]
[1734905468380,4.32,177.77,177.67,0.34869]
[1734905468984,2.8151,177.75,177.72,2.8155]
[1734905469185,35.55338946,177.84,177.67,35.90207946]
[1734905469381,4.32,177.85,177.7,35.55338946]
[1734905469687,35.55338946,177.9,177.73,35.55338946]
[1734905469880,2.8136,177.85,177.79,2.8142]
[1734905470287,4.32,177.88,177.75,1.7193]
[1734905470493,86.72294404,177.92,177.76,35.55338946]
[1734905470789,39.87338946,177.93,177.79,35.55338946]
[1734905470990,2.8126,177.91,177.85,2.8134]
[1734905471590,4.32,177.94,177.82,35.55338946]
[1734905471790,4.32,177.94,177.83,3.2174]
[1734905471987,2.8122,177.93,177.87,2.813]
[1734905472187,3.5008818,177.98,177.85,35.55338946]
[1734905472388,3.5008818,177.98,177.86,4.32]
[1734905472587,2.8114,177.98,177.86,4.32]
[1734905472996,4.32,178.04,177.88,35.55338946]
[1734905474491,35.55338946,178.02,177.84,37.25208946]
[1734905474691,35.55338946,177.96,177.84,1.6987]
[1734905474994,4.32,177.95,177.84,1.6987]
[1734905475193,4.32,177.96,177.84,1.6987]
[1734905476198,35.55338946,177.92,177.83,1.6008]
[1734905476694,35.55338946,177.92,177.83,4.4145]
[1734905477096,35.55338946,177.95,177.83,1.6008]
[1734905477291,4.32,177.94,177.83,1.6008]
[1734905477690,2.8125,177.92,177.86,2.8133]
[1734905477891,4.32,177.94,177.83,1.6008]
[1734905478884,4.32,177.94,177.85,2.8133]
[1734905478885,2.8125,177.91,177.85,2.8133]
[1734905479191,35.55338946,177.95,177.83,1.6008]
[1734905479496,39.87338946,177.95,177.83,1.6008]
[1734905479789,2.8125,177.91,177.86,2.8131]
[1734905479994,4.32,177.94,177.83,1.6008]
[1734905480496,2.8123,177.92,177.87,2.813]
[1734905480696,4.32,177.94,177.83,1.6008]
[1734905480892,35.55338946,177.98,177.84,4.32]
[1734905481094,2.8117,177.96,177.85,35.55338946]
[1734905481396,4.32,177.98,177.88,35.55338946]
[1734905481596,86.68236011,178.01,177.89,3.3574]
[1734905481893,35.55338946,178.08,177.91,35.55338946]
[1734905482095,35.55338946,178.11,177.94,35.55338946]
[1734905482290,35.55338946,178.14,177.97,35.55338946]
[1734905482496,35.55338946,178.14,177.92,1.7446]
[1734905482497,4.32,178.14,178.0,35.55338946]
[1734905482791,2.809,178.14,178.07,2.8099]
[1734905482991,4.32,178.19,178.06,35.55338946]
[1734905483195,4.32,178.19,178.07,3.3422]
[1734905483395,123.61728067,178.23,178.07,3.3422]
[1734905483585,88.06389121,178.23,178.09,35.55338946]
[1734905483791,29.56389121,178.23,178.15,35.55338946]
[1734905483991,29.56389121,178.23,178.12,35.55338946]
[1734905483992,29.56389121,178.23,178.18,35.55338946]
[1734905484187,29.56389121,178.23,178.16,4.3]
[1734905484188,4.3,178.31,178.21,35.55338946]
[1734905484389,4.3,178.31,178.23,2.8074]
[1734905484588,7.3909728,178.35,178.24,35.55338946]
[1734905485094,4.7440728,178.35,178.3,35.55338946]
[1734905485299,53.48817363,178.37,178.34,35.55338946]
[1734905485495,2.8039,178.46,178.35,2.8055]
[1734905485699,2.8039,178.46,178.31,4.3]
[1734905485700,4.3,178.53,178.41,35.55338946]
[1734905485994,22.06231123,178.56,178.44,35.55338946]
[1734905486192,2.8028,178.53,178.44,2.8041]
[1734905486396,22.06231123,178.56,178.46,38.37272811]
[1734905486597,62.78,178.62,178.46,38.37272811]
[1734905486894,4.3,178.62,178.46,38.37272811]
[1734905487093,4.3,178.62,178.5,38.37272811]
[1734905487294,211.58013739,178.68,178.51,4.3]
[1734905487496,4.3,178.67,178.51,4.3]
[1734905487701,4.3,178.66,178.51,4.3]
[1734905487891,2.8009,178.65,178.55,2.8023]
[1734905488095,58.42,178.74,178.58,38.37272811]
[1734905488295,4.891,178.73,178.58,4.3]
[1734905488697,2.7998,178.72,178.62,2.8013]
[1734905488897,4.891,178.73,178.58,4.3]
[1734905489098,4.891,178.73,178.63,2.801]
[1734905489392,4.3,178.82,178.64,4.3]
[1734905489593,4.3,178.83,178.66,42.59855256]
[1734905489805,4.891,178.86,178.66,42.59855256]
[1734905490099,4.891,178.86,178.72,42.59855256]
[1734905490302,4.891,178.86,178.73,4.48]
[1734905490500,3.2973,178.86,178.73,4.48]
[1734905490696,4.48,178.93,178.78,42.59855256]
[1734905490999,4.48,178.93,178.79,4.48]
[1734905491204,4.9474,178.98,178.79,4.48]
[1734905491501,1.6503,178.98,178.84,42.59855256]
[1734905491697,3.2548,179.09,178.85,4.48]
[1734905491906,1.11681929,179.08,178.85,4.48]
[1734905492104,1.11681929,179.08,178.99,2.7954]
[1734905492304,3.2548,179.09,178.96,47.07855256]
[1734905492508,1.7088,179.1,178.97,4.48]
[1734905492806,6.1888,179.1,178.92,4.48]
[1734905492997,1.6047,179.09,178.96,42.59855256]
[1734905493199,1.6047,179.09,179.06,2.7943]
[1734905493398,1.6047,179.09,178.97,4.48]
[1734905493603,1.6047,179.09,178.96,42.59855256]
[1734905494011,1.6047,179.09,178.97,4.48]
[1734905494804,1.6047,179.09,178.96,42.59855256]
[1734905495009,4.48,179.08,178.9,42.59855256]
[1734905495206,4.48,179.08,178.91,4.48]
[1734905495813,4.48,179.08,178.84,42.59855256]
[1734905496005,4.48,179.08,178.78,42.59855256]
[1734905496210,42.59855256,179.04,178.74,4.48]
[1734905496406,42.59855256,179.04,178.72,42.59855256]
[1734905496609,42.59855256,179.04,178.75,1.0283112]
[1734905496808,5.8571312,179.03,178.72,42.59855256]
[1734905497005,42.59855256,178.98,178.73,4.74]
[1734905497311,42.59855256,178.98,178.66,42.59855256]
[1734905497312,65.79810572,178.97,178.69,4.74]
[1734905497513,65.79810572,178.97,178.74,1.02846268]
[1734905497708,6.4357,178.96,178.7,1.02846268]
[1734905497908,2.7977,178.85,178.75,2.7992]
[1734905498109,4.74,178.88,178.69,4.74]
[1734905498306,1.7392,178.95,178.72,42.59855256]
[1734905498515,2.7967,178.92,178.73,1.02864726]
[1734905498712,4.74,178.94,178.73,1.02864726]
[1734905498912,4.74,178.94,178.74,1.02864726]
[1734905499112,42.59855256,178.92,178.67,1.02875114]
[1734905499313,1.11788049,178.91,178.61,1.82628634]
[1734905499516,1.11788049,178.91,178.62,1.02890864]
[1734905499815,59.49855256,178.86,178.61,1.02890864]
[1734905500112,5.85825552,178.85,178.54,47.33855256]
[1734905500305,22.75825552,178.85,178.55,1.02941396]
[1734905500508,2.8011,178.64,178.55,3.83171396]
[1734905500709,4.74,178.63,178.56,1.02941396]
[1734905500905,4.74,178.62,178.44,84.45644023]
[1734905501113,6.3737,178.62,178.44,84.45644023]
[1734905501504,3.71879633,178.62,178.44,84.45644023]
[1734905501709,1.6337,178.62,178.45,4.74]
[1734905502412,1.6455,178.63,178.48,42.59855256]
[1734905503111,2.8014,178.62,178.53,2.8026]
[1734905503315,1.6455,178.63,178.45,4.74]
[1734905503520,1.6455,178.63,178.46,1.02978615]
[1734905503710,4.4467,178.63,178.54,2.8025]
[1734905503910,1.6455,178.63,178.51,4.74]
[1734905504113,1.6337,178.73,178.51,4.74]
[1734905504417,6.3458,178.72,178.51,4.74]
[1734905504815,2.8009,178.65,178.56,2.8022]
[1734905505017,4.74,178.69,178.51,4.74]
[1734905505318,2.8001,178.7,178.57,2.8021]
[1734905505509,1.6058,178.72,178.51,4.74]
[1734905505912,2.8005,178.68,178.58,2.8019]
[1734905506512,2.8005,178.68,178.51,4.74]
[1734905506718,1.6058,178.72,178.51,4.74]
[1734905507118,4.74,178.71,178.48,42.59855256]
[1734905507319,4.74,178.71,178.44,89.19644023]
[1734905507619,4.74,178.7,178.45,1.02992077]
[1734905507811,2.8005,178.68,178.48,42.59855256]
[1734905508010,7.5405,178.68,178.48,42.59855256]
[1734905508214,4.74,178.68,178.48,42.59855256]
[1734905508618,1.6058,178.72,178.48,42.59855256]
[1734905508816,4.74,178.71,178.62,2.8013]
[1734905509018,1.6058,178.72,178.57,4.74]
[1734905509323,1.6058,178.72,178.58,4.74]
[1734905509818,2.7994,178.75,178.58,4.74]
[1734905510015,4.74,178.77,178.58,4.74]
[1734905510331,1.6381,178.79,178.6,42.59855256]
[1734905511126,1.6381,178.79,178.69,2.8002]
[1734905511324,1.6381,178.79,178.6,42.59855256]
[1734905511325,1.6381,178.79,178.64,4.74]
[1734905511525,1.6381,178.79,178.68,2.8003]
[1734905511726,1.6381,178.79,178.58,4.74]
[1734905511927,1.6381,178.79,178.59,1.02937719]
[1734905512527,1.6381,178.79,178.58,4.74]
[1734905512729,1.6381,178.79,178.54,3.41321189]
[1734905512930,2.8004,178.69,178.54,3.41321189]
[1734905513231,4.74,178.68,178.46,4.74]
[1734905513432,6.3368,178.67,178.46,4.74]
[1734905513629,4.74,178.66,178.47,1.02980522]
[1734905513832,1.5968,178.67,178.48,42.59855256]
[1734905514031,6.4099,178.68,178.49,1.02980522]
[1734905514229,6.4099,178.68,178.58,2.8019]
[1734905514526,6.4099,178.68,178.53,4.74]
[1734905514725,6.4099,178.68,178.54,1.02966701]
[1734905514931,6.4099,178.68,178.6,2.8016]
[1734905515122,6.4099,178.68,178.53,4.74]
[1734905515328,6.4099,178.68,178.61,2.8015]
[1734905515529,6.4099,178.68,178.53,4.74]
[1734905515723,6.4099,178.68,178.54,1.02959773]
[1734905515931,1.5968,178.78,178.54,43.62815029]
[1734905516230,4.74,178.77,178.55,1.02959773]
[1734905516530,4.74,178.76,178.55,1.02959773]
[1734905517027,2.7997,178.73,178.65,2.8009]
[1734905517331,1.5968,178.78,178.6,4.74]
[1734905517332,4.74,178.75,178.6,4.74]
[1734905517523,4.74,178.75,178.68,2.8003]
[1734905517728,2.7992,178.76,178.68,2.8003]
[1734905518129,2.7997,178.73,178.66,2.8007]
[1734905518427,4.74,178.77,178.54,42.59855256]
[1734905518629,42.59855256,178.74,178.55,1.02941182]
[1734905518827,42.59855256,178.74,178.46,97.81274026]
[1734905519124,42.59855256,178.74,178.48,42.59855256]
[1734905519328,42.59855256,178.74,178.49,1.02987989]
[1734905519721,2.8006,178.67,178.56,2.8022]
[1734905519920,4.74,178.69,178.54,4.74]
[1734905520130,4.74,178.69,178.53,4.74]
[1734905520335,1.5968,178.78,178.53,4.74]
[1734905520530,4.74,178.77,178.54,43.62824462]
[1734905520928,4.74,178.77,178.55,1.02969206]
[1734905521231,4.74,178.77,178.53,4.74]
[1734905521426,4.74,178.77,178.54,1.02957639]
[1734905521626,42.59855256,178.74,178.53,4.74]
[1734905521831,42.59855256,178.74,178.5,93.07274026]
[1734905522027,42.59855256,178.74,178.51,1.02970815]
[1734905522226,1.11900632,178.73,178.5,93.07274026]
[1734905522426,1.11900632,178.73,178.45,93.07274026]
[1734905522427,42.59855256,178.68,178.45,93.07274026]
[1734905522628,2.8028,178.53,178.46,2.8038]
[1734905522837,4.74,178.55,178.45,93.07274026]
[1734905523634,4.74,178.55,178.39,4.74]
[1734905524336,4.74,178.55,178.38,4.74]
[1734905524637,3.2666,178.54,178.38,4.74]
[1734905524937,1.6013,178.54,178.39,1.03056783]
[1734905525137,1.6653,178.65,178.38,4.74]
[1734905525433,4.74,178.64,178.42,42.59855256]
[1734905525633,4.74,178.63,178.43,2.05777845]
[1734905525836,4.74,178.63,178.44,5.77047845]
[1734905526033,4.74,178.63,178.45,1.03047845]
[1734905526332,2.8026,178.54,178.47,2.8036]
[1734905526534,4.74,178.63,178.43,5.0]
[1734905526737,4.74,178.63,178.44,1.03031676]
[1734905527134,4.74,178.63,178.45,1.03013212]
[1734905527436,4.74,178.63,178.46,1.03013212]
[1734905527739,4.74,178.63,178.4,5.0]
[1734905528032,4.74,178.63,178.41,1.03046147]
[1734905528429,2.8022,178.57,178.51,2.8031]
[1734905528733,4.74,178.63,178.4,5.0]
[1734905528933,2.8022,178.57,178.51,2.8031]
[1734905529129,4.74,178.63,178.4,5.0]
[1734905529332,3.3775,178.65,178.41,1.03029431]
[1734905529333,5.0,178.62,178.41,1.03029431]
[1734905529532,5.0,178.62,178.42,1.03026273]
[1734905529837,5.0,178.62,178.43,1.03026273]
[1734905530046,6.1786,178.65,178.58,2.8019]
[1734905530342,5.0,178.76,178.53,5.0]
[1734905530636,5.0,178.76,178.67,2.8006]
[1734905530937,5.1349,178.77,178.61,5.0]
[1734905531134,5.1349,178.77,178.59,5.28]
[1734905531940,5.1349,178.77,178.59,98.35274026]
[1734905532138,5.1349,178.77,178.6,1.0293548]
[1734905532435,5.1349,178.77,178.7,2.8]
[1734905532631,0.23146,178.78,178.66,5.28]
[1734905532832,0.23146,178.78,178.63,93.07274026]
[1734905532833,0.23146,178.78,178.67,6.30895653]
[1734905533037,0.23146,178.78,178.68,1.02887928]
[1734905534238,1.7457,178.91,178.72,42.59855256]
[1734905534443,3.3264,178.97,178.73,1.02887928]
[1734905534737,3.3264,178.97,178.74,5.26]
[1734905534942,3.3264,178.97,178.75,1.02887928]
[1734905535142,3.3264,178.97,178.76,93.07274026]
[1734905535346,3.3264,178.97,178.77,1.02887928]
[1734905535542,3.3264,178.97,178.76,93.07274026]
[1734905535738,1.11756817,178.96,178.76,93.07274026]
[1734905535948,1.11756817,178.96,178.74,93.07274026]
[1734905536248,2.7984,178.81,178.74,95.87214026]
[1734905536438,5.26,178.85,178.74,93.07274026]
[1734905536643,1.11756817,178.96,178.74,93.07274026]
[1734905536644,8.6698,178.84,178.74,93.07274026]
[1734905536849,2.7986,178.8,178.71,2.7999]
[1734905537044,5.26,178.83,178.68,93.07274026]
[1734905537442,5.0415,178.84,178.68,93.07274026]
[1734905537649,5.26,178.88,178.69,1.02881022]
[1734905537848,2.7974,178.88,178.76,2.7991]
[1734905538043,4.9552,178.95,178.75,5.26]
[1734905538244,4.9552,178.95,178.76,6.28844356]
[1734905538549,4.9552,178.95,178.76,5.26]
[1734905538948,2.797,178.91,178.76,5.26]
[1734905539145,4.9552,178.95,178.77,1.02835915]
[1734905539341,4.9552,178.95,178.76,5.26]
[1734905540842,4.9552,178.95,178.77,1.02842807]
[1734905541050,4.9552,178.95,178.78,42.59855256]
[1734905541051,3.2401,178.95,178.78,42.59855256]
[1734905541248,3.2401,178.95,178.89,2.7971]
[1734905541453,3.2401,178.95,178.73,93.86554026]
[1734905541653,3.2401,178.95,178.74,1.02831207]
[1734905541944,3.2401,178.95,178.76,93.07274026]
[1734905542149,3.2401,178.95,178.77,1.02831207]
[1734905542349,2.7967,178.93,178.86,2.7975]
[1734905542550,3.2401,178.95,178.86,2.7975]
[1734905542751,3.2401,178.95,178.8,5.26]
[1734905543050,2.7968,178.92,178.8,5.26]
[1734905543449,2.7968,178.92,178.85,2.7977]
[1734905543747,5.26,178.94,178.77,5.26]
[1734905544249,5.26,178.94,178.78,1.02834565]
[1734905545048,5.26,178.94,178.77,2.7989]
[1734905545247,2.7975,178.87,178.75,5.26]
[1734905545647,2.7978,178.85,178.79,2.7986]
[1734905545952,5.26,178.86,178.7,5.26]
[1734905546151,6.9602,178.85,178.7,5.26]
[1734905546842,1.7002,178.94,178.72,42.59855256]
[1734905547046,1.7002,178.94,178.73,1.02874013]
[1734905547354,1.7002,178.94,178.74,1.02837764]
[1734905547653,1.7002,178.94,178.75,1.02837764]
[1734905547853,2.7969,178.91,178.8,2.7986]
[1734905548148,1.7002,178.94,178.79,5.26]
[1734905548353,1.7002,178.94,178.8,5.26]
[1734905549053,2.7967,178.93,178.86,2.7976]
[1734905549256,1.7002,178.94,178.8,5.26]
[1734905550157,2.797,178.91,178.86,2.7977]
[1734905550351,1.7002,178.94,178.8,5.26]
[1734905550554,3.2401,178.95,178.8,5.26]
[1734905551852,3.2401,178.95,178.73,0.7919]
[1734905552056,2.7978,178.86,178.8,2.7987]
[1734905552254,5.26,178.91,178.73,6.0519]
[1734905552452,5.26,178.91,178.74,1.02854658]
[1734905552848,5.26,178.91,178.66,42.59855256]
[1734905553047,1.5959,178.9,178.67,6.288694]
[1734905553254,2.7993,178.77,178.67,5.26]
[1734905553454,5.26,178.82,178.67,5.26]
[1734905553857,5.26,178.83,178.67,5.26]
[1734905554156,5.26,178.83,178.65,115.99015403]
[1734905554358,3.4391,178.82,178.65,115.99015403]
[1734905554658,1.5959,178.9,178.66,43.62749035]
[1734905554853,1.5959,178.9,178.67,1.02885021]
[1734905555254,2.7973,178.89,178.83,2.7981]
[1734905555453,1.5959,178.9,178.76,5.26]
[1734905555753,3.4391,178.95,178.76,5.26]
[1734905555956,5.26,179.02,178.78,42.59855256]
[1734905556259,3.3751,179.03,178.84,42.59855256]
[1734905556459,3.3751,179.03,178.85,5.26]
[1734905556660,5.26,179.02,178.82,5.26]
[1734905557354,2.7968,178.92,178.82,5.26]
[1734905557555,5.26,179.02,178.82,5.26]
[1734905557755,5.26,179.01,178.78,5.26]
[1734905558455,2.7968,178.92,178.78,5.26]
[1734905558655,5.26,179.01,178.78,5.26]
[1734905558858,2.7961,178.97,178.89,2.7971]
[1734905559050,5.26,178.98,178.78,5.26]
[1734905559251,3.3751,179.03,178.79,6.28817064]
[1734905559456,2.7962,178.96,178.79,5.26]
[1734905559654,3.3751,179.03,178.8,1.02813369]
[1734905560155,3.3751,179.03,178.79,5.26]
[1734905560453,3.3751,179.03,178.8,1.02809651]
[1734905560658,3.3751,179.03,178.86,2.7977]
[1734905560963,3.3751,179.03,178.79,5.26]
[1734905561461,3.3751,179.03,178.8,1.0280999]
[1734905561662,5.38,179.02,178.79,5.26]
[1734905562065,2.7962,178.96,178.85,2.7977]
[1734905562267,5.38,179.02,178.79,5.26]
[1734905562461,5.38,179.02,178.77,112.51827119]
[1734905562868,42.59855256,179.0,178.77,112.51827119]
[1734905563265,42.59855256,178.94,178.7,93.07274026]
[1734905563467,8.6385,178.93,178.7,93.07274026]
[1734905564163,2.7985,178.82,178.76,2.7993]
[1734905564363,5.38,178.85,178.67,93.07274026]
[1734905564768,2.7985,178.81,178.75,2.7994]
[1734905565173,1.6408,178.84,178.67,93.07274026]
[1734905565373,1.6541,178.83,178.67,93.07274026]
[1734905566082,1.6682,178.82,178.66,5.38]
[1734905566280,1.6682,178.82,178.65,96.4833148]
[1734905566676,1.6682,178.82,178.65,3.41057454]
[1734905567279,1.6682,178.82,178.78,2.7989]
[1734905568081,1.6682,178.82,178.7,5.38]
[1734905568480,5.38,178.86,178.7,5.38]
[1734905568680,8.1779,178.86,178.7,5.38]
[1734905569181,5.38,178.89,178.71,93.07274026]
[1734905569386,5.38,178.89,178.72,1.02854887]
[1734905569685,5.38,178.89,178.71,93.07274026]
[1734905569981,2.7978,178.86,178.74,93.07274026]
[1734905570580,5.38,178.89,178.74,93.07274026]
[1734905570880,5.38,178.89,178.72,93.07274026]
[1734905571383,2.7982,178.84,178.78,2.7988]
[1734905571580,5.38,178.89,178.72,98.45274026]
[1734905572083,2.7974,178.88,178.82,2.7983]
[1734905572481,2.797,178.91,178.75,5.38]
[1734905572789,10.4546,178.93,178.75,5.38]
[1734905573178,2.7969,178.92,178.75,5.38]
[1734905573387,3.3423,178.93,178.75,98.45274026]
[1734905573587,3.3423,178.93,178.76,1.02824918]
[1734905573885,7.0879,178.99,178.76,1.02824918]
[1734905574082,1.6489,178.98,178.75,98.45274026]
[1734905574387,1.6489,178.98,178.8,93.07274026]
[1734905574886,2.7966,178.94,178.8,93.07274026]
[1734905575086,1.6489,178.98,178.8,93.07274026]
[1734905575387,1.11731843,179.0,178.94,2.7964]
[1734905575582,4.9564,179.05,178.94,2.7964]
[1734905575889,2.7955,179.01,178.95,2.7963]
[1734905576186,10.3364,179.05,178.88,5.38]
[1734905576187,4.9564,179.05,178.88,5.38]
[1734905576577,1.6489,179.05,178.88,5.38]
[1734905577384,5.38,179.1,178.88,5.38]
[1734905577688,1.6471,179.11,178.9,42.59855256]
[1734905578183,1.6471,179.11,178.89,93.07274026]
[1734905578586,2.7943,179.08,179.02,2.7952]
[1734905579289,2.794,179.1,179.04,2.7949]
[1734905579489,1.6471,179.11,178.94,5.38]
[1734905579689,2.7945,179.07,178.99,2.7957]
[1734905579889,1.6471,179.11,178.94,5.38]
[1734905581091,1.7339,179.14,178.94,5.38]
[1734905581692,1.7339,179.14,178.95,43.62576738]
[1734905581889,1.7339,179.14,178.95,42.59855256]
[1734905582290,1.7339,179.14,178.96,1.02713823]
[1734905582588,1.7339,179.14,178.95,42.59855256]
[1734905582791,2.7937,179.12,179.06,2.7946]
[1734905582990,1.7339,179.14,178.95,42.59855256]
[1734905583589,1.7339,179.14,178.94,93.07274026]
[1734905583890,2.7956,179.0,178.94,93.07274026]
[1734905584194,5.38,179.03,178.92,93.07274026]
[1734905584396,3.3337,178.99,178.92,93.07274026]
[1734905584695,5.38,178.98,178.81,5.38]
[1734905584894,5.38,178.98,178.82,5.38]
[1734905585095,1.6673,179.02,178.82,5.38]
[1734905585490,2.7957,179.0,178.88,2.7974]
[1734905585686,1.6673,179.02,178.82,5.38]
[1734905585994,5.38,179.06,178.83,1.02783405]
[1734905586388,5.38,179.06,178.82,5.38]
[1734905586586,5.38,179.06,178.84,93.07274026]
[1734905587196,2.7964,178.95,178.89,2.7973]
[1734905587499,5.38,178.99,178.84,93.07274026]